[Event "*** Titled Tuesday Blitz"]
[Site "Chess.com"]
[Date "2020.03.03"]
[Round "5"]
[White "rasmussvane"]
[Black "Gentlejimmy7"]
[Result "1-0"]
[WhiteElo "2902"]
[BlackElo "2699"]
[TimeControl "180+1"]
[EndTime "13:53:14 PST"]
[Termination "rasmussvane won by checkmate"]

1. Nf3 {[%clk 0:03:00.9]} 1... Nf6 {[%clk 0:02:56.3]} 2. g3 {[%clk 0:03:01.3]}
2... g6 {[%clk 0:02:56]} 3. Bg2 {[%clk 0:03:01.5]} 3... Bg7 {[%clk 0:02:56.6]}
4. O-O {[%clk 0:03:02.2]} 4... O-O {[%clk 0:02:57.5]} 5. d4 {[%clk 0:03:02.8]}
5... d5 {[%clk 0:02:55.6]} 6. c4 {[%clk 0:03:02.1]} 6... Nc6 {[%clk 0:02:55.3]}
7. cxd5 {[%clk 0:02:59.5]} 7... Nxd5 {[%clk 0:02:56.2]} 8. e4 {[%clk 0:03:00]}
8... Nb6 {[%clk 0:02:55.8]} 9. d5 {[%clk 0:03:00.4]} 9... Na5 {[%clk 0:02:56]}
10. Nc3 {[%clk 0:02:59.3]} 10... c6 {[%clk 0:02:55.9]} 11. Bf4 {[%clk
0:02:59.5]} 11... cxd5 {[%clk 0:02:54.1]} 12. exd5 {[%clk 0:03:00.4]} 12... Nac4
{[%clk 0:02:54.1]} 13. Qe2 {[%clk 0:02:50.6]} 13... Re8 {[%clk 0:02:49.8]} 14.
Rac1 {[%clk 0:02:37]} 14... Bg4 {[%clk 0:02:49.2]} 15. b3 {[%clk 0:02:26.3]}
15... Nd6 {[%clk 0:02:48.5]} 16. h3 {[%clk 0:02:24.6]} 16... Bxf3 {[%clk
0:02:48.3]} 17. Bxf3 {[%clk 0:02:25.5]} 17... Rc8 {[%clk 0:02:48]} 18. Nb5
{[%clk 0:02:17.7]} 18... Rxc1 {[%clk 0:02:36.4]} 19. Rxc1 {[%clk 0:02:17]} 19...
a6 {[%clk 0:02:06.1]} 20. Nxd6 {[%clk 0:02:16.2]} 20... exd6 {[%clk 0:02:05.2]}
21. Qd2 {[%clk 0:02:16.7]} 21... Be5 {[%clk 0:02:02]} 22. Bg5 {[%clk 0:02:13.6]}
22... Qd7 {[%clk 0:02:00.7]} 23. Bg4 {[%clk 0:02:13.1]} 23... f5 {[%clk
0:02:00.3]} 24. Bf3 {[%clk 0:02:12.3]} 24... Rc8 {[%clk 0:02:00.6]} 25. Be3
{[%clk 0:02:09.9]} 25... Rxc1+ {[%clk 0:01:56.1]} 26. Qxc1 {[%clk 0:02:10.8]}
26... Qc8 {[%clk 0:01:56.3]} 27. Qd2 {[%clk 0:01:53.3]} 27... Nd7 {[%clk
0:01:50.4]} 28. h4 {[%clk 0:01:53.6]} 28... Qc3 {[%clk 0:01:46.6]} 29. Qe2
{[%clk 0:01:49]} 29... Nc5 {[%clk 0:01:40.2]} 30. h5 {[%clk 0:01:41]} 30... Qd3
{[%clk 0:01:27.9]} 31. Qe1 {[%clk 0:01:33.4]} 31... Ne4 {[%clk 0:01:24.6]} 32.
Qa5 {[%clk 0:01:14.7]} 32... Bf6 {[%clk 0:01:14]} 33. Qc7 {[%clk 0:01:08.4]}
33... Qxd5 {[%clk 0:01:06.6]} 34. Qd7 {[%clk 0:01:02.3]} 34... Qe5 {[%clk
0:00:58.7]} 35. Qxb7 {[%clk 0:00:46.5]} 35... a5 {[%clk 0:00:54.4]} 36. Bf4
{[%clk 0:00:44.9]} 36... Qc5 {[%clk 0:00:44.4]} 37. Bxe4 {[%clk 0:00:40.5]}
37... fxe4 {[%clk 0:00:42.7]} 38. hxg6 {[%clk 0:00:40]} 38... hxg6 {[%clk
0:00:41.1]} 39. Qxe4 {[%clk 0:00:39.9]} 39... Kf7 {[%clk 0:00:37.6]} 40. Qb7+
{[%clk 0:00:38.4]} 40... Be7 {[%clk 0:00:30.8]} 41. Be3 {[%clk 0:00:36]} 41...
Qe5 {[%clk 0:00:22.1]} 42. Qf3+ {[%clk 0:00:32.4]} 42... Bf6 {[%clk 0:00:19.2]}
43. Kg2 {[%clk 0:00:28.2]} 43... Ke6 {[%clk 0:00:15.2]} 44. Qg4+ {[%clk
0:00:25.8]} 44... Ke7 {[%clk 0:00:14]} 45. Qc4 {[%clk 0:00:20.9]} 45... Qb2
{[%clk 0:00:11.5]} 46. Qc7+ {[%clk 0:00:20.1]} 46... Ke6 {[%clk 0:00:11.7]} 47.
Qxa5 {[%clk 0:00:19.7]} 47... d5 {[%clk 0:00:10.3]} 48. Qb6+ {[%clk 0:00:18.8]}
48... Ke7 {[%clk 0:00:10.2]} 49. Qc7+ {[%clk 0:00:16.9]} 49... Ke6 {[%clk
0:00:10.2]} 50. Qc6+ {[%clk 0:00:16.9]} 50... Ke5 {[%clk 0:00:09.2]} 51. Bf4+
{[%clk 0:00:16.7]} 51... Ke4 {[%clk 0:00:09.5]} 52. Qe6+ {[%clk 0:00:16.5]}
52... Kd3 {[%clk 0:00:08]} 53. Qxd5+ {[%clk 0:00:16.6]} 53... Ke2 {[%clk
0:00:07.5]} 54. Qf3+ {[%clk 0:00:14.6]} 54... Ke1 {[%clk 0:00:07.9]} 55. Qe3+
{[%clk 0:00:14.8]} 55... Kd1 {[%clk 0:00:07.8]} 56. Qd3+ {[%clk 0:00:14.8]}
56... Ke1 {[%clk 0:00:07.6]} 57. Qf1# {[%clk 0:00:14.1]} 1-0

[Event "*** Titled Tuesday Blitz"]
[Site "Chess.com"]
[Date "2020.03.03"]
[Round "5"]
[White "Gahan-MG"]
[Black "NTBT_DHS"]
[Result "1-0"]
[WhiteElo "2515"]
[BlackElo "2688"]
[TimeControl "180+1"]
[EndTime "13:53:16 PST"]
[Termination "Gahan-MG won by checkmate"]

1. e4 {[%clk 0:03:00.9]} 1... c5 {[%clk 0:02:58.9]} 2. Nf3 {[%clk 0:03:00.5]}
2... d6 {[%clk 0:02:59.2]} 3. Bb5+ {[%clk 0:03:00]} 3... Bd7 {[%clk 0:02:58.8]}
4. Bxd7+ {[%clk 0:02:59.9]} 4... Nxd7 {[%clk 0:02:59.7]} 5. O-O {[%clk
0:03:00.7]} 5... g6 {[%clk 0:02:59.5]} 6. Re1 {[%clk 0:03:00.4]} 6... Bg7 {[%clk
0:03:00]} 7. c3 {[%clk 0:03:00.4]} 7... Ngf6 {[%clk 0:03:00.1]} 8. d4 {[%clk
0:03:00.8]} 8... O-O {[%clk 0:03:00.1]} 9. h3 {[%clk 0:02:58.8]} 9... cxd4
{[%clk 0:02:58.2]} 10. cxd4 {[%clk 0:02:58.7]} 10... Rc8 {[%clk 0:02:54.8]} 11.
Nc3 {[%clk 0:02:58.7]} 11... a6 {[%clk 0:02:52.5]} 12. e5 {[%clk 0:02:55.7]}
12... dxe5 {[%clk 0:02:52.6]} 13. dxe5 {[%clk 0:02:55.9]} 13... Ne8 {[%clk
0:02:53.2]} 14. Bg5 {[%clk 0:02:22]} 14... Nc7 {[%clk 0:02:51.9]} 15. Nd5 {[%clk
0:02:09.9]} 15... Re8 {[%clk 0:02:23.1]} 16. Nxe7+ {[%clk 0:01:54.9]} 16... Rxe7
{[%clk 0:02:18.8]} 17. Qd6 {[%clk 0:01:52]} 17... Nxe5 {[%clk 0:02:06.2]} 18.
Qxd8+ {[%clk 0:01:21.4]} 18... Rxd8 {[%clk 0:02:07.1]} 19. Bxe7 {[%clk
0:01:18.9]} 19... Nxf3+ {[%clk 0:01:38.1]} 20. gxf3 {[%clk 0:01:18.3]} 20... Re8
{[%clk 0:01:26.4]} 21. Bd6 {[%clk 0:01:13.7]} 21... Ne6 {[%clk 0:01:26.3]} 22.
Ba3 {[%clk 0:00:56.4]} 22... Bh6 {[%clk 0:01:00]} 23. Rad1 {[%clk 0:00:53.7]}
23... Rc8 {[%clk 0:00:59.9]} 24. Rd7 {[%clk 0:00:50.6]} 24... b5 {[%clk
0:01:00.1]} 25. Ra7 {[%clk 0:00:38.8]} 25... Rc6 {[%clk 0:00:58.1]} 26. Rd1
{[%clk 0:00:36.3]} 26... Bf4 {[%clk 0:00:42.8]} 27. Rdd7 {[%clk 0:00:34.7]}
27... Ng5 {[%clk 0:00:43.1]} 28. Kg2 {[%clk 0:00:29.8]} 28... Ne6 {[%clk
0:00:15.9]} 29. Rxf7 {[%clk 0:00:27.7]} 29... Bb8 {[%clk 0:00:16.5]} 30. Rab7
{[%clk 0:00:25.4]} 30... Nf4+ {[%clk 0:00:16.1]} 31. Kh2 {[%clk 0:00:15.6]}
31... Ne6+ {[%clk 0:00:16.2]} 32. f4 {[%clk 0:00:15.8]} 32... Bxf4+ {[%clk
0:00:13.8]} 33. Kg2 {[%clk 0:00:15.8]} 33... Bc7 {[%clk 0:00:14]} 34. Rd7 {[%clk
0:00:12.9]} 34... h5 {[%clk 0:00:09.7]} 35. h4 {[%clk 0:00:10.2]} 35... a5
{[%clk 0:00:08.3]} 36. Be7 {[%clk 0:00:09.7]} 36... Kf7 {[%clk 0:00:07.2]} 37.
Bd6+ {[%clk 0:00:06.5]} 37... Ke8 {[%clk 0:00:07.6]} 38. Rdxc7 {[%clk
0:00:06.9]} 38... Nxc7 {[%clk 0:00:07.4]} 39. Bxc7 {[%clk 0:00:07.3]} 39... a4
{[%clk 0:00:06.9]} 40. Be5 {[%clk 0:00:07.4]} 40... Rc5 {[%clk 0:00:06.8]} 41.
Bf6 {[%clk 0:00:07.6]} 41... Rc4 {[%clk 0:00:05.5]} 42. Rxb5 {[%clk 0:00:06.7]}
42... Kf7 {[%clk 0:00:06.1]} 43. Bg5 {[%clk 0:00:06.6]} 43... Rc2 {[%clk
0:00:07]} 44. Rb4 {[%clk 0:00:06.3]} 44... a3 {[%clk 0:00:06.6]} 45. Rb7+ {[%clk
0:00:06.7]} 45... Ke6 {[%clk 0:00:06.7]} 46. bxa3 {[%clk 0:00:07.6]} 46... Rxa2
{[%clk 0:00:07.6]} 47. Rb6+ {[%clk 0:00:08.3]} 47... Kf5 {[%clk 0:00:08.2]} 48.
Rb3 {[%clk 0:00:09.2]} 48... Kg4 {[%clk 0:00:08.1]} 49. Rg3+ {[%clk 0:00:09.6]}
49... Kf5 {[%clk 0:00:08.2]} 50. Rf3+ {[%clk 0:00:10.2]} 50... Kg4 {[%clk
0:00:08.5]} 51. Rc3 {[%clk 0:00:10.7]} 51... Kf5 {[%clk 0:00:09.4]} 52. Rc4
{[%clk 0:00:11.1]} 52... Rxa3 {[%clk 0:00:08.8]} 53. Rf4+ {[%clk 0:00:11.7]}
53... Ke5 {[%clk 0:00:08.5]} 54. Rf6 {[%clk 0:00:12.3]} 54... Ra4 {[%clk
0:00:07.6]} 55. Rxg6 {[%clk 0:00:12.5]} 55... Kf5 {[%clk 0:00:08.5]} 56. Rh6
{[%clk 0:00:11.9]} 56... Kg4 {[%clk 0:00:08.1]} 57. Rf6 {[%clk 0:00:11]} 57...
Ra2 {[%clk 0:00:02]} 58. Rf4# {[%clk 0:00:10.8]} 1-0

[Event "*** Titled Tuesday Blitz"]
[Site "Chess.com"]
[Date "2020.03.03"]
[Round "5"]
[White "Firouzja2003"]
[Black "Msb2"]
[Result "1-0"]
[WhiteElo "3071"]
[BlackElo "2873"]
[TimeControl "180+1"]
[EndTime "13:53:17 PST"]
[Termination "Firouzja2003 won by resignation"]

1. h4 {[%clk 0:03:00.9]} 1... d5 {[%clk 0:02:59.7]} 2. h5 {[%clk 0:03:00.4]}
2... c5 {[%clk 0:02:57.9]} 3. d3 {[%clk 0:03:00.2]} 3... Nc6 {[%clk 0:02:57.9]}
4. e4 {[%clk 0:03:00.3]} 4... dxe4 {[%clk 0:02:57.3]} 5. dxe4 {[%clk 0:03:00.4]}
5... Qxd1+ {[%clk 0:02:57.5]} 6. Kxd1 {[%clk 0:03:00.9]} 6... Nf6 {[%clk
0:02:43.3]} 7. f3 {[%clk 0:03:00.9]} 7... b6 {[%clk 0:02:35.6]} 8. Be3 {[%clk
0:02:59.2]} 8... Bb7 {[%clk 0:02:35.9]} 9. Nd2 {[%clk 0:02:57.7]} 9... e6 {[%clk
0:02:34.6]} 10. h6 {[%clk 0:02:53.1]} 10... O-O-O {[%clk 0:02:24.4]} 11. c3
{[%clk 0:02:50.2]} 11... Rg8 {[%clk 0:02:20.9]} 12. Kc2 {[%clk 0:02:46.3]} 12...
g5 {[%clk 0:02:12]} 13. Bb5 {[%clk 0:02:21.5]} 13... Rg6 {[%clk 0:02:06.9]} 14.
Nc4 {[%clk 0:02:17.8]} 14... Nd7 {[%clk 0:02:04.8]} 15. Rd1 {[%clk 0:02:08.9]}
15... a6 {[%clk 0:01:41.9]} 16. Rxd7 {[%clk 0:02:05.1]} 16... Rxd7 {[%clk
0:00:58.6]} 17. Nxb6+ {[%clk 0:01:57.1]} 17... Kc7 {[%clk 0:00:58.3]} 18. Nxd7
{[%clk 0:01:57.2]} 18... Kxd7 {[%clk 0:00:59.2]} 19. Ba4 {[%clk 0:01:43.7]}
19... f5 {[%clk 0:00:54.7]} 20. Rh5 {[%clk 0:01:16.3]} 20... f4 {[%clk
0:00:53.8]} 21. Bf2 {[%clk 0:01:16]} 21... Kc7 {[%clk 0:00:48.9]} 22. Nh3 {[%clk
0:01:10.6]} 22... Be7 {[%clk 0:00:49.4]} 23. Kd1 {[%clk 0:01:01]} 23... Bc8
{[%clk 0:00:39.8]} 24. Ke2 {[%clk 0:00:49.4]} 24... e5 {[%clk 0:00:37.7]} 25.
Bb3 {[%clk 0:00:46.8]} 25... g4 {[%clk 0:00:37.6]} 26. Ng1 {[%clk 0:00:46]}
26... g3 {[%clk 0:00:25.9]} 27. Be1 {[%clk 0:00:45.5]} 27... Rg5 {[%clk
0:00:24.4]} 28. Rh1 {[%clk 0:00:41.6]} 28... Rg6 {[%clk 0:00:17.6]} 29. Bf7
{[%clk 0:00:39.4]} 29... Rf6 {[%clk 0:00:15.8]} 30. Bg8 {[%clk 0:00:39.2]} 30...
Bf8 {[%clk 0:00:16]} 31. Bxh7 {[%clk 0:00:39.1]} 31... Bxh6 {[%clk 0:00:14]} 32.
Bg8 {[%clk 0:00:38.9]} 32... Ne7 {[%clk 0:00:13.7]} 33. Bc4 {[%clk 0:00:39]}
33... a5 {[%clk 0:00:13.8]} 34. Kd1 {[%clk 0:00:34.4]} 34... Bd7 {[%clk
0:00:09]} 35. Ne2 {[%clk 0:00:34.3]} 35... Nc8 {[%clk 0:00:08.8]} 36. Nc1 {[%clk
0:00:32.3]} 36... Nb6 {[%clk 0:00:08.6]} 37. Bg8 {[%clk 0:00:30.1]} 37... c4
{[%clk 0:00:08.9]} 38. b3 {[%clk 0:00:29.9]} 38... cxb3 {[%clk 0:00:07.3]} 39.
axb3 {[%clk 0:00:29.1]} 39... a4 {[%clk 0:00:07.9]} 40. Nd3 {[%clk 0:00:25.7]}
40... axb3 {[%clk 0:00:07]} 41. Bxb3 {[%clk 0:00:25.2]} 41... Rd6 {[%clk
0:00:05.4]} 42. Kc2 {[%clk 0:00:25.3]} 42... Bg7 {[%clk 0:00:06]} 43. Rh7 {[%clk
0:00:23.9]} 43... Bf6 {[%clk 0:00:06.6]} 44. c4 {[%clk 0:00:21.7]} 44... Kb8
{[%clk 0:00:02.2]} 45. c5 {[%clk 0:00:20.9]} 45... Rc6 {[%clk 0:00:02.8]} 46.
Kb2 {[%clk 0:00:20.5]} 46... Be6 {[%clk 0:00:01.8]} 47. Bxe6 {[%clk 0:00:19]}
47... Rxe6 {[%clk 0:00:02.3]} 48. cxb6 {[%clk 0:00:19.1]} 48... Rxb6+ {[%clk
0:00:03.2]} 49. Kc2 {[%clk 0:00:19.7]} 49... Rd6 {[%clk 0:00:04.1]} 50. Bc3
{[%clk 0:00:19.7]} 50... Ra6 {[%clk 0:00:03.8]} 51. Rh6 {[%clk 0:00:18.4]} 51...
Kc8 {[%clk 0:00:02.3]} 52. Bxe5 {[%clk 0:00:16.7]} 52... Ra2+ {[%clk 0:00:02.6]}
53. Bb2 {[%clk 0:00:16.5]} 53... Bxb2 {[%clk 0:00:02.7]} 54. Nxb2 {[%clk
0:00:17.4]} 54... Ra1 {[%clk 0:00:03.6]} 55. Nd3 {[%clk 0:00:17.7]} 55... Rg1
{[%clk 0:00:03.8]} 56. Nxf4 {[%clk 0:00:17.7]} 56... Kd7 {[%clk 0:00:04.7]} 57.
Rg6 {[%clk 0:00:17.6]} 57... Rf1 {[%clk 0:00:05.6]} 58. Rxg3 {[%clk 0:00:17.5]}
58... Rf2+ {[%clk 0:00:06.5]} 59. Kd3 {[%clk 0:00:18]} 59... Kd6 {[%clk
0:00:07.4]} 60. Ke3 {[%clk 0:00:18.6]} 60... Ra2 {[%clk 0:00:07.2]} 61. Nd3
{[%clk 0:00:19.1]} 61... Ra3 {[%clk 0:00:08.1]} 62. Rg6+ {[%clk 0:00:19.1]}
62... Ke7 {[%clk 0:00:08.4]} 63. f4 {[%clk 0:00:19.7]} 63... Kf7 {[%clk
0:00:09.3]} 64. f5 {[%clk 0:00:20.3]} 64... Ke7 {[%clk 0:00:10.2]} 65. e5 {[%clk
0:00:20.8]} 65... Ra1 {[%clk 0:00:11.1]} 66. Rg7+ {[%clk 0:00:20.9]} 66... Kf8
{[%clk 0:00:12]} 67. f6 {[%clk 0:00:21.6]} 67... Ra4 {[%clk 0:00:12.7]} 68. e6
{[%clk 0:00:21.8]} 68... Ra6 {[%clk 0:00:13.1]} 69. e7+ {[%clk 0:00:22.2]} 69...
Ke8 {[%clk 0:00:14]} 70. Rg8+ {[%clk 0:00:22.8]} 1-0

[Event "*** Titled Tuesday Blitz"]
[Site "Chess.com"]
[Date "2020.03.03"]
[Round "5"]
[White "Manukyan_Artak"]
[Black "vpantev"]
[Result "0-1"]
[WhiteElo "2433"]
[BlackElo "2634"]
[TimeControl "180+1"]
[EndTime "13:53:18 PST"]
[Termination "vpantev won on time"]

1. e4 {[%clk 0:03:00.9]} 1... c6 {[%clk 0:02:58.9]} 2. d4 {[%clk 0:03:00.1]}
2... d5 {[%clk 0:02:59.5]} 3. e5 {[%clk 0:03:00.7]} 3... Bf5 {[%clk 0:02:59]} 4.
c4 {[%clk 0:03:00.8]} 4... e6 {[%clk 0:02:57.9]} 5. Nc3 {[%clk 0:03:00.9]} 5...
Ne7 {[%clk 0:02:57]} 6. Nf3 {[%clk 0:03:00]} 6... Nd7 {[%clk 0:02:55.7]} 7. Nh4
{[%clk 0:02:59.2]} 7... Bg6 {[%clk 0:02:54.7]} 8. Bg5 {[%clk 0:02:46.9]} 8...
Qb6 {[%clk 0:02:51.9]} 9. cxd5 {[%clk 0:02:35.8]} 9... Nxd5 {[%clk 0:02:50.5]}
10. Nxd5 {[%clk 0:02:30.9]} 10... cxd5 {[%clk 0:02:46.6]} 11. Nxg6 {[%clk
0:02:30.1]} 11... hxg6 {[%clk 0:02:34.9]} 12. Rb1 {[%clk 0:02:09.5]} 12... Bb4+
{[%clk 0:02:31.8]} 13. Ke2 {[%clk 0:02:04.3]} 13... Rc8 {[%clk 0:02:26.3]} 14.
h4 {[%clk 0:01:58.8]} 14... f6 {[%clk 0:02:20]} 15. exf6 {[%clk 0:01:56.2]}
15... gxf6 {[%clk 0:02:19.8]} 16. Be3 {[%clk 0:01:56.2]} 16... Kf7 {[%clk
0:02:14.3]} 17. Qb3 {[%clk 0:01:48.6]} 17... Bd6 {[%clk 0:02:08.3]} 18. Qxb6
{[%clk 0:01:40.7]} 18... Nxb6 {[%clk 0:02:07.8]} 19. Kd3 {[%clk 0:01:39.6]}
19... e5 {[%clk 0:02:03]} 20. dxe5 {[%clk 0:01:37.7]} 20... fxe5 {[%clk
0:02:02.9]} 21. Bxb6 {[%clk 0:01:37.6]} 21... axb6 {[%clk 0:02:02.1]} 22. a3
{[%clk 0:01:27.9]} 22... Rc4 {[%clk 0:01:57.1]} 23. g3 {[%clk 0:01:21.2]} 23...
e4+ {[%clk 0:01:51.5]} 24. Kd2 {[%clk 0:01:18.9]} 24... Rd4+ {[%clk 0:01:49]}
25. Kc2 {[%clk 0:01:12.9]} 25... Rc8+ {[%clk 0:01:48.5]} 26. Kb3 {[%clk
0:01:12.8]} 26... Rd2 {[%clk 0:01:47.9]} 27. h5 {[%clk 0:01:06.6]} 27... Kg7
{[%clk 0:01:37.9]} 28. hxg6 {[%clk 0:01:03.9]} 28... Kxg6 {[%clk 0:01:36.1]} 29.
Bh3 {[%clk 0:00:56.2]} 29... Rf8 {[%clk 0:01:35]} 30. Rbd1 {[%clk 0:00:49.4]}
30... Rfxf2 {[%clk 0:01:34.3]} 31. Rxd2 {[%clk 0:00:49.2]} 31... Rxd2 {[%clk
0:01:33.7]} 32. Bc8 {[%clk 0:00:44.6]} 32... Be5 {[%clk 0:01:26.9]} 33. Bxb7
{[%clk 0:00:44.1]} 33... Rxb2+ {[%clk 0:01:26.2]} 34. Ka4 {[%clk 0:00:44.3]}
34... Rd2 {[%clk 0:01:17.5]} 35. Kb5 {[%clk 0:00:38.8]} 35... e3 {[%clk
0:01:15.1]} 36. Re1 {[%clk 0:00:36.4]} 36... d4 {[%clk 0:01:13.4]} 37. Kxb6
{[%clk 0:00:32.1]} 37... e2 {[%clk 0:01:12.3]} 38. Bf3 {[%clk 0:00:30.8]} 38...
d3 {[%clk 0:01:12.3]} 39. Be4+ {[%clk 0:00:31.1]} 39... Kf6 {[%clk 0:01:10.6]}
40. Bxd3 {[%clk 0:00:32]} 40... Rxd3 {[%clk 0:01:10.1]} 41. Rxe2 {[%clk
0:00:32.5]} 41... Rxa3 {[%clk 0:01:10]} 42. g4 {[%clk 0:00:29.9]} 42... Rg3
{[%clk 0:01:07.4]} 43. Re4 {[%clk 0:00:30.1]} 43... Ke6 {[%clk 0:01:05.5]} 44.
Kc6 {[%clk 0:00:29.2]} 44... Rc3+ {[%clk 0:01:04.9]} 45. Kb5 {[%clk 0:00:28.7]}
45... Kd5 {[%clk 0:01:04.2]} 46. Re1 {[%clk 0:00:25.4]} 46... Rg3 {[%clk
0:01:03.7]} 47. Rd1+ {[%clk 0:00:24.7]} 47... Bd4 {[%clk 0:01:03.8]} 48. Kb4
{[%clk 0:00:23.2]} 48... Rxg4 {[%clk 0:01:03.6]} 49. Rh1 {[%clk 0:00:21.5]}
49... Rg2 {[%clk 0:01:02.1]} 50. Rh5+ {[%clk 0:00:21.4]} 50... Be5 {[%clk
0:01:02.2]} 51. Kb3 {[%clk 0:00:19.8]} 51... Rb2+ {[%clk 0:01:01.8]} 52. Ka3
{[%clk 0:00:20.1]} 52... Rb7 {[%clk 0:01:01.3]} 53. Rh1 {[%clk 0:00:20.1]} 53...
Kc4 {[%clk 0:01:00.2]} 54. Rh4+ {[%clk 0:00:19.6]} 54... Bd4 {[%clk 0:01:00.2]}
55. Ka2 {[%clk 0:00:19.6]} 55... Rb2+ {[%clk 0:00:40.1]} 56. Ka3 {[%clk
0:00:19.6]} 56... Rb7 {[%clk 0:00:37.7]} 57. Ka2 {[%clk 0:00:17.8]} 57... Ra7+
{[%clk 0:00:35.1]} 58. Kb1 {[%clk 0:00:17.7]} 58... Kc3 {[%clk 0:00:35.2]} 59.
Rh3+ {[%clk 0:00:16.4]} 59... Kc4 {[%clk 0:00:35.5]} 60. Kc2 {[%clk 0:00:12.6]}
60... Ra2+ {[%clk 0:00:35.2]} 61. Kd1 {[%clk 0:00:12.7]} 61... Rg2 {[%clk
0:00:34.8]} 62. Ke1 {[%clk 0:00:11]} 62... Kd5 {[%clk 0:00:33.9]} 63. Kf1 {[%clk
0:00:10.5]} 63... Rf2+ {[%clk 0:00:33.4]} 64. Ke1 {[%clk 0:00:10.8]} 64... Ra2
{[%clk 0:00:33]} 65. Kd1 {[%clk 0:00:09.2]} 65... Ke4 {[%clk 0:00:32.7]} 66. Kc1
{[%clk 0:00:08.1]} 66... Rg2 {[%clk 0:00:30.4]} 67. Kd1 {[%clk 0:00:08.1]} 67...
Be3 {[%clk 0:00:30.3]} 68. Rh8 {[%clk 0:00:04.5]} 68... Kd3 {[%clk 0:00:30.2]}
69. Rd8+ {[%clk 0:00:04.2]} 69... Bd4 {[%clk 0:00:30.3]} 0-1

[Event "*** Titled Tuesday Blitz"]
[Site "Chess.com"]
[Date "2020.03.03"]
[Round "5"]
[White "dopolian"]
[Black "Playgood28"]
[Result "1-0"]
[WhiteElo "2376"]
[BlackElo "2246"]
[TimeControl "180+1"]
[EndTime "13:53:18 PST"]
[Termination "dopolian won on time"]

1. Nf3 {[%clk 0:03:00.9]} 1... f5 {[%clk 0:02:58.8]} 2. d3 {[%clk 0:03:00.9]}
2... d6 {[%clk 0:02:57.8]} 3. e4 {[%clk 0:02:59.7]} 3... e5 {[%clk 0:02:55.6]}
4. Nc3 {[%clk 0:02:58.3]} 4... Nc6 {[%clk 0:02:55.4]} 5. d4 {[%clk 0:02:57.3]}
5... fxe4 {[%clk 0:02:52.2]} 6. Nxe4 {[%clk 0:02:56.7]} 6... exd4 {[%clk
0:02:50.1]} 7. Bb5 {[%clk 0:02:44.4]} 7... Bd7 {[%clk 0:02:47.1]} 8. O-O {[%clk
0:02:42.4]} 8... Ne5 {[%clk 0:02:37.3]} 9. Bxd7+ {[%clk 0:02:40.2]} 9... Qxd7
{[%clk 0:02:37]} 10. Nxe5 {[%clk 0:02:26.1]} 10... dxe5 {[%clk 0:02:32.7]} 11.
Qh5+ {[%clk 0:02:22.9]} 11... Kd8 {[%clk 0:01:30.8]} 12. Qxe5 {[%clk 0:02:15.3]}
12... Ne7 {[%clk 0:01:30.3]} 13. Nc5 {[%clk 0:02:11.6]} 13... Qd5 {[%clk
0:01:22.1]} 14. Bf4 {[%clk 0:01:22.1]} 14... Qxe5 {[%clk 0:01:11.8]} 15. Bxe5
{[%clk 0:01:14]} 15... Nc6 {[%clk 0:01:11]} 16. Ne6+ {[%clk 0:01:08.7]} 16...
Kd7 {[%clk 0:01:07.6]} 17. Nxf8+ {[%clk 0:01:07.5]} 17... Rhxf8 {[%clk
0:01:06.8]} 18. Bxg7 {[%clk 0:01:02.4]} 18... Rf5 {[%clk 0:00:54.4]} 19. Rad1
{[%clk 0:00:57.3]} 19... Rd5 {[%clk 0:00:51.3]} 20. Rd2 {[%clk 0:00:40.7]} 20...
Rg8 {[%clk 0:00:49.8]} 21. Bh6 {[%clk 0:00:39.7]} 21... Ne5 {[%clk 0:00:49.2]}
22. Kh1 {[%clk 0:00:37.6]} 22... c5 {[%clk 0:00:48.4]} 23. Bf4 {[%clk
0:00:36.7]} 23... Nc4 {[%clk 0:00:45]} 24. Re2 {[%clk 0:00:35]} 24... Re8 {[%clk
0:00:39.1]} 25. Rxe8 {[%clk 0:00:33.5]} 25... Kxe8 {[%clk 0:00:39]} 26. b3
{[%clk 0:00:29.1]} 26... Na3 {[%clk 0:00:38.1]} 27. Re1+ {[%clk 0:00:25.7]}
27... Kd7 {[%clk 0:00:36.8]} 28. Re2 {[%clk 0:00:26.1]} 28... b5 {[%clk
0:00:35.8]} 29. Bc1 {[%clk 0:00:24]} 29... Nb1 {[%clk 0:00:35]} 30. Bb2 {[%clk
0:00:20.4]} 30... c4 {[%clk 0:00:31.8]} 31. g3 {[%clk 0:00:18.8]} 31... d3
{[%clk 0:00:30.6]} 32. cxd3 {[%clk 0:00:15.8]} 32... cxd3 {[%clk 0:00:30.3]} 33.
Re1 {[%clk 0:00:16.5]} 33... Nd2 {[%clk 0:00:28.8]} 34. Kg2 {[%clk 0:00:14.1]}
34... a5 {[%clk 0:00:26.5]} 35. f3 {[%clk 0:00:08.8]} 35... a4 {[%clk
0:00:21.1]} 36. Bc3 {[%clk 0:00:08.5]} 36... Rc5 {[%clk 0:00:16.6]} 37. Bxd2
{[%clk 0:00:05.1]} 37... Rc2 {[%clk 0:00:15.3]} 38. Rd1 {[%clk 0:00:05.4]} 38...
Rxa2 {[%clk 0:00:13.8]} 39. bxa4 {[%clk 0:00:04.6]} 39... bxa4 {[%clk
0:00:13.5]} 40. Kf1 {[%clk 0:00:05.2]} 40... a3 {[%clk 0:00:12.1]} 41. Bc3
{[%clk 0:00:05.7]} 41... Rxh2 {[%clk 0:00:10.3]} 42. Rxd3+ {[%clk 0:00:06.6]}
42... Kc6 {[%clk 0:00:09.6]} 43. Be5 {[%clk 0:00:05.2]} 43... a2 {[%clk
0:00:08.4]} 44. Ra3 {[%clk 0:00:05.5]} 44... Kd5 {[%clk 0:00:06.6]} 45. f4
{[%clk 0:00:05]} 45... h5 {[%clk 0:00:03.7]} 46. Ke1 {[%clk 0:00:05.2]} 1-0